Cogmind - Beta 17 @@@ ROGUE MODE // 2026.07.30 @ 21:32:48 // AFD2020/Player2 Player: Michael Result: Self-destructed Performance ------------- Evolutions (0) 0 Regions Visited (4) 800 Robots Destroyed (15) 75 Value Destroyed (337) 337 Prototype IDs (0) 0 Alien Tech Used (0) 0 Bonus (347) 347 TOTAL SCORE: 1559 Bonus ------- Follower Combat Kills 347 Cogmind --------- Core Integrity 4/250 Matter 257/300 Energy 250/250 System Corruption 0% Temperature Cool (0) Movement Walking (120) Location -9/Mines Parts ------- > --- POWER (1) -------- Ion Engine > --- PROPULSION (2) --- Aluminum Leg Carbon-fiber Leg > --- UTILITY (2) ------ Medium Storage Unit Signal Interpreter > --- WEAPON (2) ------- Light Assault Rifle Light Assault Rifle > --- INVENTORY (10) --- Light Treads Wheel High-capacity Storage Unit Structural Scanner Pulse Rifle Light Assault Rifle Light Assault Rifle Grenade Launcher Rocket Launcher Peak State ------------ > --- POWER ------------ Ion Engine > --- PROPULSION ------- Aluminum Leg Carbon-fiber Leg > --- UTILITY ---------- Medium Storage Unit Signal Interpreter > --- WEAPON ----------- Light Assault Rifle Rocket Launcher > --- INVENTORY -------- Light Treads Wheel High-capacity Storage Unit Structural Scanner Pulse Rifle Light Assault Rifle Light Assault Rifle Light Assault Rifle Grenade Launcher [Rating: 11] Favorites ----------- Power Ion Engine Engine Ion Engine Propulsion Aluminum Leg Leg Aluminum Leg Utility Small Storage Unit Device Heat Sink Storage Small Storage Unit Processor Signal Interpreter Weapon Light Assault Rifle Ballistic Gun Light Assault Rifle Launcher Rocket Launcher Build | -11 -10 -10 -10 -9 ------- Run | Yrd Mat Min Exi Min Slots Evolved . | . . . . . Power . | . . . . . Propulsion . | . . . . . Utility . | . . . . . Weapon . | . . . . . Parts Attached 18 | 6 6 4 1 1 Power 1 | 1 . . . . Engine 1 | 1 . . . . Core . | . . . . . Reactor . | . . . . . Propulsion 7 | 2 3 2 . . Treads . | . . . . . Leg 7 | 2 3 2 . . Wheel . | . . . . . Hover . | . . . . . Flight . | . . . . . Utility 4 | 1 2 . 1 . Device 1 | . 1 . . . Storage 2 | 1 . . 1 . Processor 1 | . 1 . . . Hackware . | . . . . . Protection . | . . . . . Artifact . | . . . . . Weapon 6 | 2 1 2 . 1 Energy Gun . | . . . . . Energy Cannon . | . . . . . Ballistic Gun 5 | 2 1 2 . . Ballistic Cannon . | . . . . . Launcher 1 | . . . . 1 Special Weapon . | . . . . . Impact Weapon . | . . . . . Slashing Weapon . | . . . . . Piercing Weapon . | . . . . . Special Melee Weapon . | . . . . . Unidentified Prototypes . | . . . . . Parts Lost 1 | . . 1 . . Power . | . . . . . Propulsion 1 | . . 1 . . Utility . | . . . . . Weapon . | . . . . . Highest Loss Streak 1 | . . 1 . . To Critical Strikes . | . . . . . Average Backups 6 | 1 4 7 8 9 Power . | . . . . . Propulsion 2 | . 2 2 2 2 Utility 1 | . . 1 1 2 Weapon 2 | . . 4 5 5 Tool/Special . | . . . . . Unused Backups 10 | . 3 1 . 6 Power 1 | . 1 . . . Propulsion 3 | . 1 . . 2 Utility 4 | . 1 1 . 2 Weapon 2 | . . . . 2 Tool/Special . | . . . . . Average Slot Usage (%) 96 | . 90 99 100 100 Engine 14 | . 14 14 14 14 Leg 27 | . 28 27 28 28 Storage 14 | . 14 14 14 14 Processor 10 | . 4 14 14 14 Ballistic Gun 28 | . 28 28 28 28 Peak Build Rating 11 | 6 7 10 10 11 Average Rating 7 | 4 6 7 10 10 On Entrance 6 | . 6 7 10 10 Avg Prop Armor Cover (%) . | . . . . . Naked Turns . | . . . . . Heaviest Build 20 | 13 14 12 17 20 Greatest Support 25 | 20 20 25 25 25 Greatest Overweight (x) 3 | 3 . 1 . . Average Overweight (x) . | . . . . . Largest Inventory Capacity 10 | 8 8 8 10 10 Average Capacity 8 | 7 8 8 8 10 Most Carried 9 | 3 8 8 9 9 Average Carried 6 | 1 4 7 8 9 Final Capacity 10 | 8 8 8 10 10 Final Carried 9 | 3 7 8 9 9 Class Distribution -------------------- 100% | Mutant Dominant Class ---------------- Mutant | -10/Materials Mutant | -10/Mines Mutant | -10/Exiles Mutant | -9/Mines Resources | -11 -10 -10 -10 -9 ----------- Run | Yrd Mat Min Exi Min Matter Collected 500 | 201 202 97 . . Remotely . | . . . . . Salvage Created 418 | . 217 164 . 37 Parts 27 | . 12 13 . 2 Haulers Intercepted . | . . . . . Recyclers Shooed . | . . . . . Parts Field Recycled . | . . . . . Retrieved Matter . | . . . . . Parts Self-Destructed . | . . . . . Prevented . | . . . . . Parts Restored . | . . . . . Kills | -11 -10 -10 -10 -9 ------- Run | Yrd Mat Min Exi Min Combat Hostiles Destroyed 14 | . 6 7 . 1 Guns 13 | . 6 7 . . AOE 1 | . . . . 1 Classes Destroyed 3 | . 3 . . . Watcher 1 | . 1 . . . Swarmer 7 | . 2 5 . . Grunt 7 | . 4 2 . 1 Best Kill Streak 3 | . 3 2 . 1 Combat Bots Only 3 | . 3 2 . 1 Max Kills in Single Turn 1 | . 1 1 . 1 Gunslinging . | . . . . . Exploded 1 | . . . . 1 Melee . | . . . . . Uniques/NPCs Destroyed . | . . . . . Combat | -11 -10 -10 -10 -9 -------- Run | Yrd Mat Min Exi Min Hostile Shots Fired 52 | . 30 20 . 2 Missed 14 | . 10 3 . 1 Hits 38 | . 20 17 . 1 Projectile 38 | . 20 17 . 1 AOE 1 | . . 1 . . Critical Strikes 2 | . 1 1 . . Damage Taken 567 | . 303 252 . 12 Core 110 | . 73 25 . 12 Absorbed by Shields . | . . . . . Core Remaining (%) 100 | 100 . . . . Volleys Fired 47 | . 23 22 . 2 Largest 2 | . 2 2 . 2 Hottest 40 | . 40 40 . 40 Shots Fired 93 | . 46 44 . 3 Gun 92 | . 46 44 . 2 Cannon . | . . . . . Launcher 1 | . . . . 1 Special . | . . . . . Kinetic 92 | . 46 44 . 2 Thermal . | . . . . . Explosive 1 | . . . . 1 Electromagnetic . | . . . . . Robot Hit Streak 7 | . 7 7 . 3 Robot Miss Streak 3 | . 3 2 . 1 Penetration Max . | . . . . . Secondary Targets 2 | . 2 . . . Max Gunslinging Chain 1 | . 1 . . . Shots Hit Robots 54 | . 29 23 . 2 Core Hits 25 | . 11 13 . 1 Critical Kills 1 | . . 1 . . Critical Parts Destroyed . | . . . . . Critical Strikes 1 | . . 1 . . Destroy 1 | . . 1 . . Melee Attacks . | . . . . . Impact . | . . . . . Slashing . | . . . . . Piercing . | . . . . . Sneak Attacks . | . . . . . Combat Hostiles . | . . . . . Follow-up Attacks . | . . . . . Damage Inflicted 603 | . 302 188 . 113 Guns 500 | . 302 188 . 10 Cannons . | . . . . . Explosions 103 | . . . . 103 Melee . | . . . . . Ramming . | . . . . . Kinetic 500 | . 302 188 . 10 Thermal . | . . . . . Explosive 103 | . . . . 103 Electromagnetic . | . . . . . Impact . | . . . . . Slashing . | . . . . . Piercing . | . . . . . Highest Corruption . | . . . . . Average Corruption . | . . . . . Corruption Purged . | . . . . . Corruption Blocked . | . . . . . Overload Shots . | . . . . . Overflow Damage . | . . . . . Projectiles . | . . . . . Explosions . | . . . . . Melee . | . . . . . Knockbacks . | . . . . . Impact . | . . . . . Kinetic . | . . . . . Secondary . | . . . . . Self-Inflicted Damage . | . . . . . Shots . | . . . . . Rammed . | . . . . . Targets Rammed . | . . . . . Kicked . | . . . . . Crushed . | . . . . . Highest Temperature 21 | . 21 9 . . Average Temperature 8 | . 9 8 . . Received Heat Transfer 195 | . 93 96 . 6 Siege Activations . | . . . . . Martial Activations . | . . . . . Shielding Activations . | . . . . . Robots Disrupted . | . . . . . Combat Hostiles . | . . . . . Robots Corrupted . | . . . . . Combat Hostiles . | . . . . . Parts Fried . | . . . . . Impact Corruptions . | . . . . . Robots Melted . | . . . . . Combat Hostiles . | . . . . . Parts Melted . | . . . . . Heat Transferred . | . . . . . Parts Sabotaged . | . . . . . Parts Stolen . | . . . . . Parts Stripped . | . . . . . Power Chain Reactions . | . . . . . Alert | -11 -10 -10 -10 -9 ------- Run | Yrd Mat Min Exi Min Maximum Alert Level 1 | . 1 . . . Low Security (%) 97 | 100 92 100 . 100 Level 1 2 | . 7 . . . Level 2 . | . . . . . Level 3 . | . . . . . Level 4 . | . . . . . Level 5 . | . . . . . High Security . | . . . . . Max Security . | . . . . . Peak Influence 222 | . 222 135 . 27 Initial 73 | . . 73 . . Average 86 | . 125 64 . 2 Influence Increases 839 | . 474 338 . 27 Destroy 0b10 Robot/C 540 | . 300 220 . 20 Destroy 0b10 Robot/NC 5 | . 5 . . . Destroy Leader 92 | . 62 30 . . Allied During Kill 161 | . 88 68 . 5 Successful Hack 4 | . 4 . . . Destroy Structure 7 | . . 5 . 2 Lose Combat Pursuer 30 | . 15 15 . . Influence Decreases 822 | . 284 470 58 10 Entered New Map 175 | . . 117 58 . Time Decay 617 | . 284 323 . 10 Lost Part 10 | . . 10 . . Lost Ally 20 | . . 20 . . Squads Dispatched 4 | . 2 2 . . Investigation 1 | . . 1 . . Extermination . | . . . . . Reinforcement 2 | . 2 . . . Assault 1 | . . 1 . . Garrison . | . . . . . Intercept . | . . . . . Searches Triggered . | . . . . . Construction Impeded . | . . . . . Haulers Reinforced . | . . . . . Active Scanning Responses . | . . . . . Cargo Convoy Interrupts . | . . . . . Stealth | -11 -10 -10 -10 -9 --------- Run | Yrd Mat Min Exi Min Distress Signals 3 | . 3 . . . Communications Jammed . | . . . . . Distress Signals . | . . . . . Times Spotted 32 | . 20 10 . 2 Peak Tracking Total 6 | . 6 3 . 2 Tactical Retreats 2 | . 1 1 . . Traps | -11 -10 -10 -10 -9 ------- Run | Yrd Mat Min Exi Min Traps Triggered 1 | . 1 . . . Indirectly . | . . . . . Trap Hack Attempts . | . . . . . Triggered . | . . . . . Disarmed . | . . . . . Reprogrammed . | . . . . . Reused . | . . . . . Traps Extracted . | . . . . . Installed 1 | . . 1 . . Triggered . | . . . . . Machines | -11 -10 -10 -10 -9 ---------- Run | Yrd Mat Min Exi Min Machines Disabled . | . . . . . Max in Single Turn . | . . . . . Machines Repaired . | . . . . . Machines Dismantled . | . . . . . Machines Sabotaged . | . . . . . Overloaded Fab Kills . | . . . . . Hacking | -11 -10 -10 -10 -9 --------- Run | Yrd Mat Min Exi Min Machines Accessed 7 | . 4 2 1 . Terminals 2 | . 2 . . . Fabricators . | . . . . . Repair Stations 1 | . 1 . . . Recycling Units 1 | . 1 . . . Scanalyzers . | . . . . . Garrison Access . | . . . . . Total Hacks 12 | . 9 2 1 . Successful 6 | . 3 2 1 . Failed 6 | . 6 . . . Catastrophic 1 | . 1 . . . Database Lockouts . | . . . . . Manual . | . . . . . Terminals 4 | . 4 . . . Fabricators . | . . . . . Repair Stations 4 | . 4 . . . Recycling Units 1 | . 1 . . . Scanalyzers . | . . . . . Garrison Access . | . . . . . Terminal Hacks 4 | . 1 2 1 . Record 1 | . . . 1 . Open Door 2 | . . 2 . . Locate Traps 1 | . 1 . . . Fabricator Hacks . | . . . . . Repair Station Hacks 1 | . 1 . . . Scan Component 1 | . 1 . . . Recycling Unit Hacks 1 | . 1 . . . Retrieve Components 1 | . 1 . . . Scanalyzer . | . . . . . Garrison Access Hacks . | . . . . . Unauthorized Hacks . | . . . . . Terminals . | . . . . . Fabricators . | . . . . . Repair Stations . | . . . . . Recycling Units . | . . . . . Scanalyzers . | . . . . . Garrison Access . | . . . . . Data Cores Recovered . | . . . . . Used . | . . . . . Hacking Detections 3 | . 3 . . . Full Trace Events . | . . . . . Feedback Events . | . . . . . Feedback Blocked . | . . . . . Robot Schematics Acquired . | . . . . . Robots Built . | . . . . . Authchips . | . . . . . Time . | . . . . . Total Robot Build Rating . | . . . . . Part Schematics Acquired . | . . . . . Parts Built . | . . . . . Authchips . | . . . . . Time . | . . . . . Total Part Build Rating . | . . . . . Part Studies Acquired . | . . . . . Parts Repaired . | . . . . . Time . | . . . . . Parts Recycled . | . . . . . Recycled Matter . | . . . . . Retrieved Matter . | . . . . . Retrieved Components 9 | . 9 . . . Parts Scanalyzed . | . . . . . Part Schematics Acquired . | . . . . . Parts Damaged . | . . . . . Bothacking | -11 -10 -10 -10 -9 ------------ Run | Yrd Mat Min Exi Min Used RIF Installer . | . . . . . Robots Hacked . | . . . . . Non-combat . | . . . . . Combat . | . . . . . Robot Hacks Applied . | . . . . . Relay Couplers Released . | . . . . . Fabnet Peak Effective % . | . . . . . Robots Rewired . | . . . . . Allies Hacked . | . . . . . Hacks Repelled . | . . . . . Allies | -11 -10 -10 -10 -9 -------- Run | Yrd Mat Min Exi Min Total Allies 2 | . 1 1 . . Largest Group 2 | . 1 2 1 1 Highest-Rated Group 98 | . 58 98 69 69 Highest-Rated Ally 69 | . 58 69 69 69 Total Orders . | . . . . . Ally Attacks 65 | . 38 25 . 2 Total Damage 1043 | . 677 341 . 25 Kills 13 | . 9 4 . . Allies Corrupted . | . . . . . Allies Melted . | . . . . . Intel | -11 -10 -10 -10 -9 ------- Run | Yrd Mat Min Exi Min Active Infowar (turns) . | . . . . . Robot Analysis Total . | . . . . . Derelict Logs Recovered 1 | . . 1 . . Drone Launches . | . . . . . Drone Recoveries . | . . . . . Exploration | -11 -10 -10 -10 -9 ------------- Run | Yrd Mat Min Exi Min Turns Passed 1838 | 61 692 844 198 43 Spaces Moved 1271 | 40 426 628 148 29 Core 6 | 6 . . . . Treads . | . . . . . Legs 1265 | 34 426 628 148 29 Wheels . | . . . . . Hover . | . . . . . Flight . | . . . . . Fastest Speed 50 | 50 120 120 120 120 Average Speed 120 | 124 120 120 120 120 Slowest Speed 200 | 200 120 190 120 120 Overloaded Moves . | . . . . . Propulsion Burnouts . | . . . . . Robots Hopped . | . . . . . Potential Cave-ins . | . . . . . Cave-ins Triggered . | . . . . . Exploration Rate (%) 47 | 3 67 98 48 20 Regions Visited 4 Branch Regions 3 Pre-discovered Areas 1 | . . . 1 . Known Exits Taken 3 | . 1 1 1 . Unknown Exits Taken 1 | 1 . . . . Scrap Searched 2 | . . 2 . . Spaces Dug . | . . . . . Terrain Destroyed 2 | . . . . 2 Melee . | . . . . . Projectile . | . . . . . AOE 2 | . . . . 2 Terrain Rammed . | . . . . . Walls Destroyed . | . . . . . Machines Disabled . | . . . . . Actions | -11 -10 -10 -10 -9 --------- Run | Yrd Mat Min Exi Min Total 1497 | 48 566 681 169 33 Wait 134 | . 101 14 19 . Move 1267 | 39 425 627 147 29 Hop . | . . . . . Pick Up 13 | 3 4 5 1 . Fast Attach 10 | 6 3 1 . . Attach . | . . . . . Detach 2 | . 2 . . . Swap 10 | . 3 4 1 2 Drop 13 | . 5 7 1 . Fire 47 | . 23 22 . 2 Melee . | . . . . . Ram . | . . . . . Kick . | . . . . . Crush . | . . . . . Escape Stasis . | . . . . . Rewire . | . . . . . Trap 1 | . . 1 . . Miscellaneous . | . . . . . Route ------- -11/Scrapyard -10/Materials (discovered 2 exits: *Mat / *Min) -10/Mines (discovered 4 exits: *Mat x2 / *Exi / [*Sub]) -10/Exiles -9/Mines History --------- Turn | Location | Event 11 | -11/Scrapyard | Discovered new exit (range 16) 62 | -11/Scrapyard | Entered Materials 316 | -10/Materials | Build established: Mutant 612 | -10/Materials | Discovered new exit (range 12) 678 | -10/Materials | Identified exit to Materials 732 | -10/Materials | Discovered new exit (range 7) 752 | -10/Materials | Identified exit to Mines 754 | -10/Materials | Entered Mines 786 | -10/Mines | Met a Derelict bent on vengeance 824 | -10/Mines | Received a Rocket Launcher from a helpful Derelict 844 | -10/Mines | Core integrity fell below 50% 902 | -10/Mines | A weapon hastily lodged in a ceiling crevice suddenly fell to the ground 943 | -10/Mines | Discovered exit to Materials (range 11) 991 | -10/Mines | Learned Materials stockpile data 999 | -10/Mines | Found the Drone Emporium 1113 | -10/Mines | Met a Derelict shopkeep closing up shop 1278 | -10/Mines | Found a hidden stash of uninstalled traps 1289 | -10/Mines | Met a Derelict testing a Signal Generator 1305 | -10/Mines | Found Signal Generator 1331 | -10/Mines | Discovered new exit (range 12) 1497 | -10/Mines | Discovered exit to Materials (range 3) 1586 | -10/Mines | Deemed a non-threat by the Exiles lab entrance 1586 | -10/Mines | Discovered new exit (range 5) 1589 | -10/Mines | Identified exit to Exiles 1598 | -10/Mines | Entered Exiles 1627 | -10/Exiles | Met 8R-AWN 1649 | -10/Exiles | Met EX-HEX 1696 | -10/Exiles | Met EX-DEC 1700 | -10/Exiles | Learned location of Zion (-6) 1765 | -10/Exiles | Discovered new exit (range 10) 1774 | -10/Exiles | Identified exit to Mines 1796 | -10/Exiles | Entered Mines 1797 | -9/Mines | Assembled infested the area 1802 | -9/Mines | Assisted by a Guerilla fighting off Assembled 1838 | -9/Mines | Core integrity fell below 20% 1839 | -9/Mines | Self-destructed Last Messages --------------- 01740_ Acquired Hcp. Storage Unit. 01765_ EXIT=FOUND 01774_ EXIT=IDENTIFIED: MINES LOCATION=MINES GOAL=ESCAPE 01797_ ALERT: Infestation in the mines, dispatching Demolisher response squad. Player 2: "Okay we need to either get out of here fast, or hide and let 0b10 handle the infestation, then avoid the dispatch." 01802_ A derelict emerges from the shadows: "You need to get out of here! I've been tracking a group of Assembled to figure out where they're coming from, and they're closing on this area, come on!" Player 2: "It would be a shame if your Lgt. Assault Rifle broke." 01822_ EP-5MM(h): "I'll hold them off! Go on ahead or try to find another way!" 01833_ G-34 Mercenary destroyed. Map ----- +----------------------------------------------------+ | ????????? ??????????????????????????????????????? | | ?????????# ??????????????????????????????????????? | | ?????????# ??????????????????????????????????????? | | ?????????# ??????????????????????????????????????? | | ?????????# ???????? ?????????????????????????????? | | ?????????# ???????# ##???????????????????????????? | | ????????## ??????? ???????????????????????????? | | ??????### ##?????? ???????????????????????????? | | ?????## #?????? ???????????????????????????? | | ?????# #??????? ???????????????????????????? | | ?????# ##?????? ##?????????????????????????? | | ??????# ##?????? ##??????##????????????????? | | ??????## ####??? #????## #####????????????? | | ???????## ##??# ##### #????????????? | | ????????## #??# # ###??????????? | | ?????????# #?## ??????????? | | ?????????# """ ### ??????????? | | ?????????# """ ## ?????????????? | | ?????????# """ @ ????????????????? | | ?????????## ### ##??????????????????? | | ??????????#### #?## # #???????????????????? | | ?????????????## ##??? ??????????????????????? | | ??????????????#####????# ## #???????????????????? | | ???????????????????????# #???????????????????? | | ???????????????????????# ## #???????????????????? | | ???????????????????????# @#?? ???????????????????? | | ?????????????????????# #???#??????????????????? | | ????????????????????# ??????????????????????? | | ??????????????????? b #?????????????????????? | | ????????????????? #?????????????????????? | | ??????????????? #?????????????????????? | | ??????????????# #?????????????????????? | | ??????????????### [ ?????????????????????? | | ????????????????# *% ?????????????????????? | | ????????????????# ?????????????????????? | | ????????????????## ????????????????????? | | ?????????????????# ????????????????????? | | ?????????????????## ????????????????????? | | ??????????????????## ????????????????????? | | ????????????????????? ????????????????????? | | ???????????????????????### ?????????????????????? | | ?????????????????????????????????????????????????? | | ?????????????????????????????????????????????????? | | ?????????????????????????????????????????????????? | | ?????????????????????????????????????????????????? | | ?????????????????????????????????????????????????? | | ?????????????????????????????????????????????????? | | ?????????????????????????????????????????????????? | | ?????????????????????????????????????????????????? | | ?????????????????????????????????????????????????? | +----------------------------------------------------+ Best States ------------- Heat Dissipation 35 Energy Generation 10 Energy Capacity 250 Matter Stores 300 Matter Capacity 300 Sight Range 16 Terrain Scan Density 10 Evasion (%) 55 Item Schematics ----------------- None Robot Schematics ------------------ None Fabricated ------------ Nothing Repaired ---------- Nothing Studied --------- None Alien Tech Used ----------------- None Achievements -------------- None Challenges ------------ None Player 2 | -11 -10 -10 -10 -9 ---------- Run | Yrd Mat Min Exi Min Slots Evolved . | . . . . . Power . | . . . . . Propulsion . | . . . . . Utility . | . . . . . Weapon . | . . . . . Parts Attached 19 | . 12 7 . . Parts Lost . | . . . . . Damage Taken 454 | . 217 87 . 150 Core 136 | . 47 37 . 52 Player 2/Cogmind (%) 55 | . 39 59 . 81 Absorbed by Shields . | . . . . . Damage Inflicted 918 | . 677 216 . 25 Player 2/Cogmind (%) 60 | . 69 53 . 18 Combat Hostiles Destroyed 12 | . 9 3 . . Player 2/Cogmind (%) 46 | . 60 30 . . Game ------ Seed RagnarokSignalMindspike Manual? 0 Play Time 00:18:39 Cumulative 28.5 hours Start 2026.07.30 @ 21:11:12 End 2026.07.30 @ 21:32:48 Sessions 1 Manual Loads 0 Difficulty Rogue Special Mode AFD2020/Player2 Game No. 28 Rogue 28 Adventurer 0 Explorer 0 Win Type - Total 0 Types 0/0/0/0/0/0/0/0/0/0 Lore% 13 Gallery% 16 Achievement% 22 Wizard Run 0 Options --------- Layout 2 ASCII 0 Keyboard 1 Movement Vi Keybinds 0 Fullscreen 1 Font 24/Terminus Map View 25x22 Zoom Use 98% Tactical HUD 1 Map Filters NONE Filters SHIFT_HUE(270) Steam 0 RUN: ce85256c-8ad1-4c5d-bb46-8cfab25c3a5a